bitfinex/quotes_BTCUSD_20240101
["timestamp","ask_amount","ask_price","bid_price","bid_amount"]
[1704082695709,1.05011031,42309.0,42308.0,0.04916]
[1704082695914,1.15011031,42309.0,42308.0,0.04916]
[1704082697519,1.15011031,42309.0,42308.0,0.002]
[1704082697520,1.30401288,42309.0,42308.0,0.002]
[1704082697731,1.77506554,42309.0,42308.0,0.00193712]
[1704082697944,1.62116297,42309.0,42308.0,0.00193712]
[1704082699787,1.42116297,42309.0,42308.0,0.00193712]
[1704082700044,1.30116297,42309.0,42308.0,0.00193712]
[1704082700474,0.83011031,42309.0,42308.0,0.00193712]
[1704082700697,0.37739831,42309.0,42308.0,0.00193712]
[1704082701804,0.1441812,42309.0,42308.0,0.00193712]
[1704082702019,0.06231711,42309.0,42308.0,0.09775712]
[1704082702229,0.06231711,42309.0,42308.0,0.04909712]
[1704082704067,0.86824622,42309.0,42308.0,0.04909712]
[1704082704279,0.95011031,42309.0,42308.0,0.04909712]
[1704082705357,0.95011031,42309.0,42308.0,0.00193712]
[1704082705358,1.67897608,42309.0,42308.0,0.00193712]
[1704082705591,2.13793679,42309.0,42308.0,0.00193712]
[1704082705808,1.66522479,42309.0,42308.0,0.00193712]
[1704082706018,1.33598167,42309.0,42308.0,0.00193712]
[1704082706264,0.96458678,42309.0,42308.0,0.00193712]
[1704082706494,1.63729946,42309.0,42308.0,0.00193712]
[1704082706709,1.66522479,42309.0,42308.0,0.00193712]
[1704082707131,1.58109206,42309.0,42308.0,0.00193712]
[1704082707568,1.63729366,42309.0,42308.0,0.00193712]
[1704082708003,1.63729626,42309.0,42308.0,0.00193712]
[1704082708421,1.63728126,42309.0,42308.0,0.00193712]
[1704082708833,1.69328183,42309.0,42308.0,0.00193712]
[1704082709276,1.58109206,42309.0,42308.0,0.00193712]
[1704082709488,1.72132928,42309.0,42308.0,0.00193712]
[1704082709699,1.10838006,42309.0,42308.0,0.00193712]
[1704082709909,1.58109206,42309.0,42308.0,0.00193712]
[1704082710130,1.72132928,42309.0,42308.0,0.00193712]
[1704082710605,2.05380406,42309.0,42308.0,0.00193712]
[1704082710809,2.16615209,42309.0,42308.0,0.00193712]
[1704082711249,2.16614449,42309.0,42308.0,0.00193712]
[1704082711488,2.05380406,42309.0,42308.0,0.00193712]
[1704082712174,2.4353977,42309.0,42308.0,0.00193712]
[1704082712385,2.29516048,42309.0,42308.0,0.00193712]
[1704082712572,2.43560528,42309.0,42308.0,0.00193712]
[1704082712857,2.63689073,42309.0,42308.0,0.00193712]
[1704082713089,3.23981342,42309.0,42308.0,0.00193712]
[1704082713894,0.32131711,42308.0,42307.0,0.02871]
[1704082714631,1.89081984,42308.0,42307.0,0.02871]
[1704082714632,1.94901984,42308.0,42307.0,0.02871]
[1704082714633,2.42174284,42308.0,42307.0,0.02871]
[1704082715098,2.91246584,42308.0,42307.0,0.02871]
[1704082715265,3.05987223,42308.0,42307.0,0.02871]
[1704082715539,2.44256731,42308.0,42307.0,0.02871]
[1704082716009,2.57206257,42308.0,42307.0,0.02871]
[1704082716228,2.55206257,42308.0,42307.0,0.02871]
[1704082716430,2.59006257,42308.0,42307.0,0.03071]
[1704082717060,2.83141899,42308.0,42307.0,0.03071]
[1704082717226,2.59006257,42308.0,42307.0,0.03071]
[1704082718046,2.46056731,42308.0,42307.0,0.03071]
[1704082718515,2.93521827,42308.0,42307.0,0.03071]
[1704082718730,0.32131711,42302.0,42301.0,0.11486272]
[1704082718956,1.61250778,42302.0,42301.0,0.11486272]
[1704082719180,1.69437187,42302.0,42301.0,0.11486272]
[1704082719624,1.99437187,42302.0,42301.0,0.11486272]
[1704082720051,2.01037187,42302.0,42301.0,0.11486272]
[1704082720280,2.02437187,42302.0,42301.0,0.11586272]
[1704082720511,2.18144796,42302.0,42301.0,0.11586272]
[1704082721210,2.18144796,42302.0,42301.0,0.11086272]
[1704082721211,2.1533167,42302.0,42301.0,0.11086272]
[1704082721444,2.12522783,42302.0,42301.0,0.11086272]
[1704082724084,1.65243783,42302.0,42301.0,0.11086272]
[1704082724297,0.28453422,42302.0,42301.0,0.11086272]
[1704082724510,0.28453422,42302.0,42301.0,0.15802272]
[1704082724750,0.64294254,42302.0,42301.0,0.11086272]
[1704082724955,0.68886045,42302.0,42301.0,0.11086272]
[1704082725161,1.21782388,42302.0,42301.0,0.11086272]
[1704082725367,1.16165045,42302.0,42301.0,0.11086272]
[1704082725570,1.46165045,42302.0,42301.0,0.11086272]
[1704082728590,1.49023384,42302.0,42301.0,0.11086272]
[1704082729263,0.77503971,42302.0,42301.0,0.15802272]
[1704082729513,0.97503971,42302.0,42301.0,0.15802272]
[1704082729726,0.97518135,42302.0,42301.0,0.15802272]
[1704082729938,0.88453422,42302.0,42301.0,0.15802272]
[1704082730367,0.9756491,42302.0,42301.0,0.15802272]
[1704082731016,0.9756491,42302.0,42301.0,0.1104624]
[1704082734180,0.7556491,42302.0,42301.0,0.1104624]
[1704082734399,0.9756491,42302.0,42301.0,0.1576224]
[1704082736433,0.56453422,42302.0,42301.0,0.1576224]
[1704082736659,0.26453422,42302.0,42301.0,0.2215224]
[1704082737139,0.27453422,42302.0,42301.0,0.1576224]
[1704082737361,0.26321711,42302.0,42301.0,0.1576224]
[1704082737580,0.26453422,42302.0,42301.0,0.2143224]
[1704082738009,0.03131711,42302.0,42301.0,0.2143224]
[1704082738676,0.04131711,42302.0,42301.0,0.2143224]
[1704082738888,0.03131711,42302.0,42301.0,0.2143224]
[1704082739155,0.024,42302.0,42301.0,0.7201244]
[1704082739402,0.02731711,42302.0,42301.0,0.7201244]
[1704082739625,0.02931711,42302.0,42301.0,0.7201244]
[1704082739861,0.028,42302.0,42301.0,0.7201244]
[1704082740308,0.00131711,42305.0,42301.0,0.7191244]
[1704082740528,0.00131711,42305.0,42304.0,0.519926]
[1704082740529,0.01131711,42305.0,42304.0,0.519926]
[1704082740749,0.01131711,42305.0,42304.0,0.04716]
[1704082740984,0.00131711,42305.0,42304.0,0.602486]
[1704082741506,0.38437528,42318.0,42304.0,0.602486]
[1704082741507,0.18121862,42317.0,42304.0,0.602486]
[1704082741730,0.00131711,42309.0,42308.0,0.519872]
[1704082742175,0.01131711,42309.0,42308.0,0.717032]
[1704082742408,0.00131711,42315.0,42308.0,0.717032]
[1704082742655,0.23321711,42317.0,42312.0,0.04716]
[1704082742656,0.01,42313.0,42312.0,0.04716]
[1704082743107,0.01131711,42313.0,42312.0,0.04716]
[1704082743325,0.01131711,42313.0,42312.0,0.13146]
[1704082745152,0.01131711,42313.0,42312.0,0.13446]
[1704082745374,0.01131711,42313.0,42312.0,0.13246]
[1704082745610,0.01131711,42313.0,42312.0,0.13346]
[1704082746080,0.01131711,42313.0,42312.0,0.13446]
[1704082750797,0.01131711,42313.0,42312.0,0.05016]
[1704082751244,0.01131711,42313.0,42312.0,0.09258]
[1704082751484,0.01531711,42313.0,42312.0,0.09258]
[1704082751707,0.24753422,42313.0,42312.0,0.04716]
[1704082751926,0.24653422,42313.0,42312.0,0.04716]
[1704082752367,0.24853422,42313.0,42312.0,0.04816]
[1704082752608,0.24953422,42313.0,42312.0,0.001]
[1704082752838,0.01131711,42312.0,42311.0,0.04716]
[1704082753084,0.24453422,42312.0,42311.0,0.04716]
[1704082753524,0.24453422,42312.0,42311.0,0.10728]
[1704082754920,0.01131711,42312.0,42311.0,0.10728]
[1704082755595,0.01631711,42312.0,42311.0,0.10828]
[1704082756034,0.02331711,42312.0,42311.0,0.10928]
[1704082756930,0.022,42312.0,42311.0,0.10928]
[1704082757150,0.012,42312.0,42311.0,1.24978]
[1704082757373,0.022,42312.0,42311.0,1.24978]
[1704082757815,0.01,42312.0,42311.0,1.24778]
[1704082758250,0.014,42312.0,42311.0,1.24778]
[1704082758471,0.016,42312.0,42311.0,1.24878]
[1704082758689,0.017,42312.0,42311.0,0.62373]
[1704082758918,0.011,42312.0,42311.0,0.62273]
[1704082759142,0.011,42312.0,42311.0,0.72185]
[1704082759355,0.012,42312.0,42311.0,0.62973]
[1704082759801,0.011,42312.0,42311.0,0.62273]
[1704082760331,0.01131711,42312.0,42311.0,0.61273]
[1704082760543,0.01231711,42312.0,42311.0,0.62273]
[1704082760992,0.01231711,42312.0,42311.0,0.61973]
[1704082761228,0.01331711,42312.0,42311.0,0.73173]
[1704082761707,0.012,42312.0,42311.0,0.73173]
[1704082761932,0.01331711,42312.0,42311.0,0.73173]
[1704082762375,0.012,42312.0,42311.0,0.73173]
[1704082763056,0.01331711,42312.0,42311.0,0.73173]
[1704082763273,0.01331711,42312.0,42311.0,0.59751]
[1704082765452,0.012,42312.0,42311.0,0.62799]
[1704082765672,0.012,42312.0,42311.0,0.76613]
[1704082766104,0.012,42312.0,42311.0,0.81113]
[1704082766105,0.002,42312.0,42311.0,0.81113]
[1704082766325,0.002,42312.0,42311.0,1.9722]
[1704082766546,0.002,42312.0,42311.0,2.0259]
[1704082766767,0.002,42312.0,42311.0,2.3259]
[1704082767019,0.002,42312.0,42311.0,1.85321]
[1704082767456,0.00625582,42315.0,42314.0,0.04716]
[1704082767672,0.00625582,42315.0,42314.0,0.842816]
[1704082767922,0.00625582,42315.0,42314.0,1.254656]
[1704082768140,0.00625582,42315.0,42314.0,1.117376]
[1704082769222,0.00625582,42315.0,42314.0,1.094376]
[1704082769869,0.00625582,42315.0,42314.0,1.108376]
[1704082770082,0.00725582,42315.0,42314.0,1.131376]
[1704082770305,0.00825582,42315.0,42314.0,1.718296]
[1704082770724,0.00725582,42315.0,42314.0,1.708296]
[1704082770933,0.00825582,42315.0,42314.0,1.721296]
[1704082772106,0.00825582,42315.0,42314.0,1.821296]
[1704082773606,0.00825582,42315.0,42314.0,2.293952]
[1704082775342,0.2059,42328.0,42321.0,0.04716]
[1704082775557,0.2159,42328.0,42327.0,0.519671]
[1704082775776,0.01,42328.0,42327.0,0.519671]
[1704082776020,0.01,42328.0,42327.0,0.74352844]
[1704082776223,0.01,42328.0,42327.0,0.744431]
[1704082776412,0.01,42329.0,42327.0,0.744431]
[1704082776661,0.018,42328.0,42327.0,0.27192]
[1704082776879,0.008,42328.0,42327.0,0.04716]
[1704082777095,0.006,42328.0,42327.0,0.29604]
[1704082777363,0.01,42328.0,42327.0,0.29604]
[1704082777588,0.2228,42332.0,42327.0,0.791551]
[1704082777589,0.22411711,42332.0,42327.0,0.791551]
[1704082777805,0.22411711,42332.0,42329.0,0.04716]
[1704082778015,0.23411711,42332.0,42331.0,0.519626]
[1704082778515,0.23411711,42332.0,42331.0,0.716426]
[1704082778766,0.23411711,42332.0,42331.0,0.10164]
[1704082779678,0.23411711,42332.0,42331.0,0.04716]
[1704082779951,0.23411711,42332.0,42331.0,0.09354]
[1704082780166,0.36906246,42332.0,42331.0,0.04716]
[1704082780398,0.37206246,42332.0,42331.0,0.04716]
[1704082780613,0.37206246,42332.0,42328.0,0.06828]
[1704082780614,0.01131711,42330.0,42329.0,0.04716]
[1704082780828,0.24453422,42330.0,42329.0,0.04716]
[1704082781049,0.34453422,42330.0,42329.0,0.04716]
[1704082781943,1.12029907,42330.0,42329.0,0.04716]
[1704082782158,1.12313907,42330.0,42329.0,0.04716]
[1704082782823,1.12313907,42330.0,42322.0,0.078]
[1704082782824,0.01131711,42324.0,42323.0,0.04716]
[1704082783054,0.10460396,42324.0,42323.0,0.04716]
[1704082783280,0.10460396,42324.0,42323.0,0.10038]
[1704082783511,0.24453422,42324.0,42323.0,0.04716]
[1704082783751,0.00131711,42323.0,42322.0,0.04716]
[1704082783962,0.24453422,42323.0,42322.0,0.04716]
[1704082785739,0.24453422,42323.0,42317.0,0.04716]
[1704082785958,0.01131711,42318.0,42317.0,0.04716]
[1704082786395,0.01131711,42318.0,42317.0,0.11784]
[1704082787060,0.01131711,42318.0,42317.0,0.11884]
[1704082787285,0.01131711,42318.0,42317.0,0.11784]
[1704082787731,0.01931711,42318.0,42317.0,0.04716]
[1704082787918,0.01631711,42318.0,42317.0,0.1155]
[1704082788128,0.01931711,42318.0,42317.0,0.1155]
[1704082788565,0.01931711,42318.0,42317.0,0.04716]
[1704082788566,0.18434631,42318.0,42317.0,0.04716]
[1704082789014,0.18434631,42318.0,42317.0,0.10026]
[1704082789679,0.18434631,42318.0,42309.0,0.6571]
[1704082789680,0.01,42316.0,42315.0,0.04716]
[1704082789905,0.01131711,42316.0,42315.0,0.04716]
[1704082790125,0.24453422,42316.0,42315.0,0.10188]
[1704082790799,0.24653422,42316.0,42315.0,0.10188]
[1704082791688,0.24653422,42316.0,42312.0,0.04716]
[1704082791906,0.24653422,42316.0,42312.0,0.10962]
[1704082791907,0.00131711,42313.0,42312.0,0.10962]
[1704082792126,0.00131711,42313.0,42312.0,0.04716]
[1704082792343,0.01131711,42313.0,42312.0,0.10818]
[1704082793940,0.01131711,42313.0,42312.0,0.11218]
[1704082794164,0.01131711,42313.0,42312.0,0.11518]
[1704082794386,0.01131711,42313.0,42312.0,0.11118]
[1704082794618,0.01131711,42313.0,42312.0,0.734399]
[1704082795277,0.01131711,42313.0,42312.0,0.731399]
[1704082795503,0.01,42313.0,42312.0,0.731399]
[1704082795715,0.01731711,42313.0,42312.0,0.732399]
[1704082795935,0.02231711,42313.0,42312.0,0.626619]
[1704082796153,0.01131711,42313.0,42312.0,0.625619]
[1704082796368,0.01131711,42313.0,42312.0,0.626619]
[1704082797449,0.01,42313.0,42312.0,0.725859]
[1704082798551,0.01131711,42313.0,42312.0,0.626619]
[1704082799454,0.01131711,42313.0,42312.0,0.724899]
[1704082799884,0.01131711,42313.0,42312.0,0.626619]
[1704082800312,0.01,42313.0,42312.0,0.724839]
[1704082800545,0.01131711,42313.0,42312.0,0.724839]
[1704082800758,0.01131711,42313.0,42312.0,0.626619]
[1704082800984,0.01131711,42313.0,42312.0,0.724779]
[1704082801205,0.01131711,42313.0,42312.0,0.626619]
[1704082801421,0.01131711,42313.0,42312.0,0.12352]
[1704082801422,0.18297766,42313.0,42312.0,0.12352]
[1704082801639,0.01131711,42313.0,42312.0,0.12352]
[1704082802328,0.01,42313.0,42312.0,0.698459]
[1704082802576,0.015,42313.0,42312.0,0.698459]
[1704082802796,0.015,42313.0,42312.0,0.731219]
[1704082803274,0.012,42313.0,42312.0,0.731219]
[1704082803489,0.012,42313.0,42312.0,0.627959]
[1704082803931,0.012,42313.0,42312.0,0.11262]
[1704082803932,0.01131711,42313.0,42312.0,0.11262]
[1704082805245,0.01431711,42313.0,42312.0,0.11362]
[1704082805666,0.01431711,42313.0,42312.0,0.11262]
[1704082805881,0.01631711,42313.0,42312.0,0.11262]
[1704082806337,0.01331711,42313.0,42312.0,0.11262]
[1704082806564,0.01331711,42313.0,42312.0,0.04716]
[1704082806565,0.34653422,42313.0,42312.0,0.04716]
[1704082807306,0.92920122,42313.0,42312.0,0.04716]
[1704082807524,0.93220122,42313.0,42312.0,0.04716]
[1704082807736,0.01131711,42307.0,42306.0,0.04716]
[1704082808197,0.01131711,42307.0,42306.0,0.1089]
[1704082808419,0.34453422,42307.0,42306.0,0.1089]
[1704082808633,0.34453422,42307.0,42306.0,0.04716]
[1704082809061,0.52574593,42307.0,42306.0,0.04716]
[1704082809286,0.63174593,42307.0,42306.0,0.04816]
[1704082809502,0.73174593,42307.0,42306.0,0.04816]
[1704082809719,0.74174593,42307.0,42306.0,0.001]
[1704082809942,0.73674593,42307.0,42306.0,0.001]
[1704082810192,0.74074593,42307.0,42306.0,0.001]
[1704082810611,0.11131711,42303.0,42302.0,0.04716]
[1704082810881,0.34453422,42303.0,42302.0,0.04716]
[1704082811756,0.51916657,42303.0,42302.0,0.04716]
[1704082812225,0.61916657,42303.0,42302.0,0.04716]
[1704082812453,0.71916657,42303.0,42302.0,0.04716]
[1704082812684,0.51916657,42303.0,42302.0,0.04716]
[1704082812896,0.53516657,42303.0,42302.0,0.04816]
[1704082813105,0.51916657,42303.0,42302.0,0.04716]
[1704082813548,0.53416657,42303.0,42302.0,0.04816]
[1704082813768,0.73416657,42303.0,42302.0,0.04816]
[1704082814003,0.73416657,42303.0,42302.0,0.04906726]
[1704082814004,0.76016657,42303.0,42302.0,0.04906726]
[1704082814898,0.76016657,42303.0,42302.0,0.002]
[1704082815338,0.76016657,42303.0,42300.0,0.00084545]
[1704082815339,0.32131711,42302.0,42300.0,0.00084545]
[1704082815563,0.85737422,42302.0,42300.0,0.00084545]
[1704082816665,0.85737422,42302.0,42301.0,0.1104624]
[1704082816889,0.87037422,42302.0,42301.0,0.1104624]
[1704082817313,0.88437422,42302.0,42301.0,0.1114624]
[1704082818577,0.26153422,42302.0,42301.0,0.2132824]
[1704082818803,0.27153422,42302.0,42301.0,0.2132824]
[1704082819034,0.28153422,42302.0,42301.0,0.1586224]
[1704082819458,0.48153422,42302.0,42301.0,0.1586224]
[1704082820555,0.38153422,42302.0,42301.0,0.1586224]
[1704082824571,0.48153422,42302.0,42301.0,0.1586224]
[1704082824787,1.05432422,42302.0,42301.0,0.1586224]
[1704082825207,0.58153422,42302.0,42301.0,0.1586224]
[1704082825422,1.05432422,42302.0,42301.0,0.1586224]
[1704082826051,1.35432422,42302.0,42301.0,0.1586224]
[1704082826265,1.04455256,42302.0,42301.0,0.1586224]
[1704082826473,1.51734256,42302.0,42301.0,0.1586224]
[1704082834430,1.51734256,42302.0,42300.0,0.00084545]
[1704082834431,0.32131711,42301.0,42300.0,0.00084545]
[1704082834647,2.02003822,42301.0,42300.0,0.00084545]
[1704082834866,2.06875822,42301.0,42300.0,0.00084545]
[1704082835086,2.02003822,42301.0,42300.0,0.00084545]
[1704082835307,2.67033156,42301.0,42300.0,0.00084545]
[1704082835526,2.48051514,42301.0,42300.0,0.00084545]
[1704082835751,2.49851514,42301.0,42300.0,0.00284545]
[1704082835966,4.9818082,42285.0,42282.0,0.1976]
[1704082836185,5.07509505,42285.0,42282.0,0.1976]
[1704082836395,4.9818082,42285.0,42283.0,0.05646]
[1704082836611,4.9818082,42285.0,42284.0,0.07576]
[1704082836851,5.21502531,42285.0,42284.0,0.07576]
[1704082837273,5.21502531,42285.0,42284.0,0.07676]
[1704082837274,5.22202531,42285.0,42284.0,0.07676]
[1704082838436,5.37307161,42285.0,42284.0,0.07776]
[1704082838648,5.37307161,42285.0,42284.0,0.002]
[1704082838649,5.67307161,42285.0,42284.0,0.002]
[1704082838871,6.14605161,42285.0,42284.0,0.002]
[1704082839085,6.15605161,42285.0,42284.0,0.002]
[1704082839307,6.25236173,42285.0,42284.0,0.002]
[1704082839534,6.31100531,42285.0,42284.0,0.002]
[1704082839754,6.4650084,42285.0,42284.0,0.001]
[1704082840184,6.4790084,42285.0,42284.0,0.001]
[1704082840643,0.32131711,42282.0,42277.0,0.2]
[1704082840864,1.45501531,42282.0,42277.0,0.2]
[1704082841537,1.33501531,42282.0,42277.0,0.2]
[1704082841749,0.23453422,42282.0,42278.0,0.07158]
[1704082841970,0.26253422,42282.0,42281.0,0.06568]
[1704082842200,0.25253422,42282.0,42281.0,0.06568]
[1704082842413,0.018,42282.0,42281.0,0.2314]
[1704082843301,0.036,42282.0,42281.0,0.2314]
[1704082843519,0.036,42282.0,42281.0,0.725425]
[1704082843520,0.018,42282.0,42281.0,0.725425]
[1704082843736,0.036,42282.0,42281.0,0.727425]
[1704082844174,0.018,42282.0,42281.0,0.725425]
[1704082844393,0.019,42282.0,42281.0,0.730425]
[1704082844642,0.001,42282.0,42281.0,0.730425]
[1704082844855,0.00331711,42282.0,42281.0,0.596725]
[1704082845126,0.00331711,42282.0,42281.0,0.09292]
[1704082845552,0.00231711,42282.0,42281.0,0.09292]
[1704082845974,0.01331711,42282.0,42281.0,0.09292]
[1704082846190,0.01331711,42282.0,42281.0,0.0739]
[1704082846401,0.01231711,42282.0,42281.0,0.0739]
[1704082847043,0.01131711,42282.0,42281.0,0.0689]
[1704082847255,0.01231711,42282.0,42281.0,0.0739]
[1704082847473,0.01131711,42282.0,42281.0,0.0689]
[1704082847700,0.01231711,42282.0,42281.0,0.008]
[1704082847922,0.24653422,42282.0,42281.0,0.013]
[1704082848389,0.24553422,42282.0,42281.0,0.013]
[1704082848611,0.24553422,42282.0,42281.0,0.008]
[1704082848612,0.24453422,42282.0,42281.0,0.008]
[1704082848826,0.25053422,42282.0,42281.0,0.008]
[1704082849075,0.26253422,42282.0,42281.0,0.009]
[1704082849298,0.25653422,42282.0,42281.0,0.009]
[1704082849742,0.26853422,42282.0,42281.0,0.009]
[1704082850169,0.25653422,42282.0,42281.0,0.008]
[1704082850607,0.26853422,42282.0,42281.0,0.009]
[1704082850819,0.25653422,42282.0,42281.0,0.009]
[1704082851041,0.02331711,42282.0,42281.0,0.009]
[1704082851256,0.02331711,42282.0,42281.0,0.07214]
[1704082851480,0.25653422,42282.0,42281.0,0.07214]
[1704082851701,0.35653422,42282.0,42281.0,0.009]
[1704082851914,0.36853422,42282.0,42281.0,0.009]
[1704082852586,1.04154822,42282.0,42281.0,0.009]
[1704082852844,1.05154822,42282.0,42281.0,0.009]
[1704082853898,1.05154822,42282.0,42281.0,0.05616]
[1704082853899,0.75154822,42282.0,42281.0,0.05616]
[1704082854136,0.85154822,42282.0,42281.0,0.05616]
[1704082854792,0.26853422,42282.0,42281.0,0.05616]
[1704082855017,0.27853422,42282.0,42281.0,0.05616]
[1704082855636,0.26853422,42282.0,42281.0,0.05616]
[1704082855844,0.26853422,42282.0,42281.0,0.11316]
[1704082856474,0.27853422,42282.0,42281.0,0.05616]
[1704082856939,0.41864589,42282.0,42281.0,0.05616]
[1704082858439,0.27853422,42282.0,42281.0,0.05616]
[1704082860147,0.94154822,42282.0,42281.0,0.05616]
[1704082860376,0.95154822,42282.0,42281.0,0.05616]
[1704082861342,0.74154822,42282.0,42281.0,0.11274]
[1704082861547,0.74154822,42282.0,42281.0,0.05616]
[1704082861966,0.74154822,42282.0,42281.0,0.11772]
[1704082861967,0.25853422,42282.0,42281.0,0.11772]
[1704082863735,0.26853422,42282.0,42281.0,0.05616]
[1704082869994,0.02531711,42282.0,42281.0,0.05616]
[1704082870215,0.024,42282.0,42281.0,0.25218]
[1704082870431,0.024,42282.0,42281.0,0.725205]
[1704082870884,0.022,42282.0,42281.0,0.725205]
[1704082871106,0.01,42282.0,42281.0,0.724205]
[1704082871378,0.007,42282.0,42281.0,1.052985]
[1704082871676,4.97049109,42285.0,42283.0,0.14716]
[1704082871917,4.98049109,42285.0,42284.0,0.07016]
[1704082872149,4.9818082,42285.0,42284.0,0.12126]
[1704082872944,5.4436146,42285.0,42284.0,0.04716]
[1704082873993,0.01131711,42283.0,42282.0,0.04716]
[1704082874217,0.24453422,42283.0,42282.0,0.04716]
[1704082875746,0.44453422,42283.0,42282.0,0.04716]
[1704082876424,0.47353422,42283.0,42282.0,0.04816]
[1704082879054,0.44453422,42283.0,42282.0,0.04716]
[1704082879382,0.45953422,42283.0,42282.0,0.04716]
[1704082879876,0.45853422,42283.0,42282.0,0.04816]
[1704082880148,0.27353422,42283.0,42282.0,0.09988]
[1704082880392,0.25953422,42283.0,42282.0,0.09888]
[1704082880629,0.25753422,42283.0,42282.0,0.04816]
[1704082880852,0.27153422,42283.0,42282.0,0.04816]
[1704082881097,0.27153422,42283.0,42282.0,0.10378]
[1704082882000,0.24453422,42283.0,42282.0,0.10278]
[1704082882221,0.25653422,42283.0,42282.0,0.10278]
[1704082882420,0.26753422,42283.0,42282.0,0.10378]
[1704082883516,0.25553422,42283.0,42282.0,0.10378]
[1704082883718,0.24453422,42283.0,42282.0,0.10278]
[1704082883937,0.25453422,42283.0,42282.0,0.04816]
[1704082884260,0.26553422,42283.0,42282.0,0.04816]
[1704082885120,0.46553422,42283.0,42282.0,0.04816]
[1704082885349,1.21524503,42283.0,42282.0,0.04816]
[1704082885468,1.21524503,42283.0,42282.0,0.001]
[1704082885681,1.22524503,42283.0,42282.0,0.001]
[1704082885883,1.21524503,42283.0,42282.0,0.001]
[1704082886084,1.22524503,42283.0,42282.0,0.001]
[1704082886574,1.28142625,42283.0,42282.0,0.001]
[1704082886807,1.30951686,42283.0,42282.0,0.001]
[1704082887006,1.60952822,42283.0,42282.0,0.001]
[1704082887270,1.63760747,42283.0,42282.0,0.001]
[1704082887515,1.60952577,42283.0,42282.0,0.001]
[1704082887732,1.60952546,42283.0,42282.0,0.001]
[1704082887902,1.58143459,42283.0,42282.0,0.001]
[1704082889496,1.63760747,42283.0,42282.0,0.001]
[1704082890593,1.52524503,42283.0,42282.0,0.001]
[1704082891695,1.48899027,42283.0,42282.0,0.001]
[1704082891910,1.66553598,42283.0,42282.0,0.001]
[1704082892778,1.69441734,42283.0,42282.0,0.001]
[1704082893225,1.22141434,42283.0,42282.0,0.001]
[1704082893436,1.62157157,42283.0,42282.0,0.001]
[1704082893649,1.55396429,42283.0,42282.0,0.001]
[1704082894124,1.37741858,42283.0,42282.0,0.001]
[1704082894327,1.63237448,42283.0,42282.0,0.001]
[1704082895479,1.58857173,42283.0,42282.0,0.001]
[1704082895696,1.51787163,42283.0,42282.0,0.001]
[1704082895918,1.90982158,42283.0,42282.0,0.001]
[1704082896155,0.32131711,42282.0,42281.0,0.004]
[1704082896381,0.00131711,42262.0,42260.0,0.04998]
[1704082896604,0.00131711,42262.0,42259.0,0.07564]
[1704082896605,0.33782107,42262.0,42259.0,0.07564]
[1704082896823,0.33782107,42262.0,42259.0,0.0286]
[1704082897066,0.24453422,42262.0,42259.0,0.0286]
[1704082897309,0.54453422,42262.0,42259.0,0.0286]
[1704082897561,0.54453422,42262.0,42261.0,0.01477006]
[1704082898327,1.01777222,42262.0,42261.0,0.01477006]
[1704082898563,0.46153422,42262.0,42261.0,0.01477006]
[1704082898773,0.47653422,42262.0,42261.0,0.01577006]
[1704082898992,0.46153422,42262.0,42261.0,0.01477006]
[1704082899210,0.45953422,42262.0,42261.0,0.01577006]
[1704082899424,0.44453422,42262.0,42261.0,0.01477006]
[1704082899662,0.24453422,42262.0,42261.0,0.01477006]
[1704082899885,0.25953422,42262.0,42261.0,0.01577006]
[1704082900958,0.26153422,42262.0,42261.0,0.01477006]
[1704082901179,0.3886039,42262.0,42261.0,0.01477006]
[1704082901392,0.4036039,42262.0,42261.0,0.01577006]
[1704082901613,0.3866039,42262.0,42261.0,0.01577006]
[1704082902110,1.1448419,42262.0,42261.0,0.01477006]
[1704082902333,1.1448419,42262.0,42261.0,0.01577006]
[1704082902334,1.1768419,42262.0,42261.0,0.01577006]
[1704082902791,1.1618419,42262.0,42261.0,0.01477006]
[1704082903010,1.1598419,42262.0,42261.0,0.01577006]
[1704082904311,1.1768419,42262.0,42261.0,0.01577006]
[1704082906717,1.0768419,42262.0,42261.0,0.01577006]
[1704082906941,0.37653422,42262.0,42261.0,0.01577006]
[1704082908044,0.27653422,42262.0,42261.0,0.01577006]
[1704082908304,0.03331711,42262.0,42261.0,0.01577006]
[1704082908529,0.04331711,42262.0,42261.0,0.11585006]
[1704082908969,0.01631711,42262.0,42261.0,0.11585006]
[1704082909183,0.02631711,42262.0,42261.0,0.11585006]
[1704082909398,0.01631711,42262.0,42261.0,0.11585006]
[1704082909846,0.015,42262.0,42261.0,0.61309906]
[1704082910061,0.015,42262.0,42261.0,0.73701906]
[1704082910293,0.017,42262.0,42261.0,0.65909906]
[1704082910507,0.02,42262.0,42261.0,0.75335906]
[1704082910721,0.003,42262.0,42261.0,0.75335906]
[1704082910958,0.00131711,42264.0,42261.0,0.75335906]
[1704082911171,0.00131711,42264.0,42263.0,0.04716]
[1704082911387,4.69820434,42265.0,42263.0,0.04716]
[1704082911600,0.00131711,42264.0,42263.0,0.13596]
[1704082911810,0.00131711,42264.0,42263.0,0.15896]
[1704082912477,4.68820434,42265.0,42263.0,0.15896]
[1704082912674,4.69820434,42265.0,42263.0,0.25178]
[1704082912883,4.69820434,42265.0,42264.0,0.07962]
[1704082913096,4.69820434,42265.0,42264.0,0.12678]
[1704082913537,4.69820434,42265.0,42264.0,0.22098]
[1704082913538,4.68820434,42265.0,42264.0,0.22098]
[1704082913750,4.68820434,42265.0,42264.0,0.24398]
[1704082914202,4.68820434,42265.0,42264.0,1.303215]
[1704082914419,4.68820434,42265.0,42264.0,1.644715]
[1704082914633,4.68820434,42265.0,42264.0,1.647715]
[1704082914883,4.68820434,42265.0,42264.0,1.644715]
[1704082915094,4.68820434,42265.0,42264.0,1.643715]
[1704082915313,4.68820434,42265.0,42264.0,1.647715]
[1704082916853,4.68820434,42265.0,42264.0,1.643715]
[1704082917065,4.68820434,42265.0,42264.0,1.804275]
[1704082917277,4.68920434,42265.0,42264.0,1.809275]
[1704082917504,4.69020434,42265.0,42264.0,1.820275]
[1704082917715,4.68920434,42265.0,42264.0,1.669575]
[1704082917927,4.68920434,42265.0,42264.0,1.631355]
[1704082917928,4.68820434,42265.0,42264.0,1.631355]